Cogmind - Beta 9.2 @@@ ROGUE MODE // 2019.11.25 @ 09:40:06 Player: Dhoby_Ghaut Result: Self-destructed Performance ------------- Evolutions (3) 1500 Regions Visited (8) 1600 Robots Destroyed (56) 280 Value Destroyed (2216) 2216 Prototype IDs (26) 520 Alien Tech Used (0) 0 Bonus (1082) 1082 TOTAL SCORE: 7198 Bonus ------- High Alert Combat Kills 45 Follower Combat Kills 37 Entered Garrisons 200 Used RIF Installer 500 Aligned with FarCom 300 Cogmind --------- Core Integrity 480/700 Matter 229/300 Energy 140/140 System Corruption 1% Temperature Cool (0) Movement Core (1500) Ox29 Location -7/Factory Parts ------- > --- POWER (1) -------- Light Deuterium Engine > --- PROPULSION (2) --- (None) > --- UTILITY (6) ------ Improved Heat Sink Large Storage Unit High-capacity Storage Unit High-capacity Storage Unit > --- WEAPON (4) ------- Mini Grenade Launcher Powered Hammer > --- INVENTORY (26) --- Improved Ion Engine Medium Treads Medium Treads Medium Treads Medium Treads Improved Heat Sink Energy Filter Improved Light Armor Plating Shield Generator Relay Coupler [NC] (34) Relay Coupler [NC] (44) Relay Coupler [Grunt] (31) Relay Coupler [Grunt] (22) Relay Coupler [Grunt] (22) Relay Coupler [Demolisher] (22) Trap Reconfigurator Improved EM Pulse Cannon Flak Cannon Flak Cannon Advanced Assault Cannon Mini Grenade Launcher Peak State ------------ > --- POWER ------------ Light Deuterium Engine > --- PROPULSION ------- Medium Treads Medium Treads > --- UTILITY ---------- Improved Heat Sink Improved Heat Sink Large Storage Unit Large Storage Unit Improved Light Armor Plating Trap Reconfigurator > --- WEAPON ----------- Heavy Particle Gun Gatling Laser Improved EM Pulse Cannon Gauss Rifle > --- INVENTORY -------- Improved Ion Engine Medium Treads Medium Treads Medium Treads Medium Treads Improved Heat Sink Large Storage Unit Energy Filter Improved Light Armor Plating Improved Light Armor Plating Shield Generator Precision Beam Rifle Advanced Assault Cannon Mini Grenade Launcher Mini Grenade Launcher Powered Hammer [Rating: 52] Favorites ----------- Power Light Deuterium Engine Engine Light Deuterium Engine Power Core Light Nuclear Core Propulsion Wheel Treads Medium Treads Wheel Wheel Utility Large Storage Unit Device Improved Heat Sink Storage Large Storage Unit Processor Enhanced Optical Array Protection Improved Light Armor Plating Weapon Particle Gun Energy Gun Particle Gun Energy Cannon Particle Cannon Ballistic Gun Gauss Rifle Launcher Mini Grenade Launcher Impact Weapon Powered Hammer Build | -11 -10 -10 -10 -9 -8 -7 -7 -7 ------- Run | Scr Mat Min Exi Min Mat Fac Gar Fac Slots Evolved 6 | . . . . . 4 2 . . Power . | . . . . . . . . . Propulsion . | . . . . . . . . . Utility 4 | . . . . . 2 2 . . Weapon 2 | . . . . . 2 . . . Parts Attached 80 | 8 4 . . 10 14 19 21 4 Power 5 | 1 . . . 1 2 1 . . Engine 4 | 1 . . . . 2 1 . . Core 1 | . . . . 1 . . . . Reactor . | . . . . . . . . . Propulsion 6 | 2 1 . . . . 2 1 . Treads 3 | . . . . . . 2 1 . Leg . | . . . . . . . . . Wheel 3 | 2 1 . . . . . . . Hover . | . . . . . . . . . Flight . | . . . . . . . . . Utility 27 | 2 2 . . . 4 8 9 2 Device 10 | 1 . . . . 2 3 4 . Storage 6 | 1 2 . . . . . 1 2 Processor 1 | . . . . . . 1 . . Hackware . | . . . . . . . . . Protection 10 | . . . . . 2 4 4 . Artifact . | . . . . . . . . . Weapon 42 | 3 1 . . 9 8 8 11 2 Energy Gun 18 | 2 1 . . 6 4 3 1 1 Energy Cannon 5 | . . . . . . 3 2 . Ballistic Gun 6 | 1 . . . . 2 . 3 . Ballistic Cannon . | . . . . . . . . . Launcher 8 | . . . . 3 1 . 3 1 Special Weapon . | . . . . . . . . . Impact Weapon 5 | . . . . . 1 2 2 . Slashing Weapon . | . . . . . . . . . Piercing Weapon . | . . . . . . . . . Special Melee Weapon . | . . . . . . . . . Unidentified Prototypes 2 | . . . . . 1 1 . . Parts Lost 17 | . . . . . 2 4 4 7 Power . | . . . . . . . . . Propulsion 2 | . . . . . . . . 2 Utility 5 | . . . . . . 2 1 2 Weapon 10 | . . . . . 2 2 3 3 Highest Loss Streak 7 | . . . . . 1 2 1 7 Average Slot Usage (%) 99 | . 99 100 100 100 98 99 99 97 Engine 7 | . 14 14 14 2 5 7 7 7 Core 1 | . . . . 11 3 . . . Treads 7 | . . . . . . 7 15 14 Wheel 11 | . 27 28 28 28 18 7 . . Device 11 | . 1 . . . 9 15 15 14 Storage 19 | . 26 28 28 28 18 15 18 23 Protection 8 | . . . . . 8 12 10 6 Energy Gun 18 | . 28 28 28 25 28 16 13 6 Energy Cannon 4 | . . . . . . 10 4 . Ballistic Gun 2 | . . . . . 4 . 4 6 Launcher 1 | . . . . 2 . . 3 7 Impact Weapon 2 | . . . . . 1 2 2 7 Naked Turns . | . . . . . . . . . Heaviest Build 102 | 12 41 41 41 43 54 62 75 102 Greatest Support 56 | 20 20 20 20 20 20 56 56 56 Greatest Overweight (x) 4 | . 4 2 2 2 2 3 1 3 Average Overweight (x) 1 | . 1 2 2 1 2 1 . 1 Largest Inventory Capacity 26 | 6 16 16 16 16 16 16 22 26 Average Capacity 17 | 5 14 16 16 16 16 16 18 24 Most Carried 23 | 6 16 16 16 16 16 16 21 23 Average Carried 15 | 2 11 16 15 16 15 15 16 21 Final Capacity 26 | 6 16 16 16 16 16 16 22 26 Final Carried 21 | 6 16 16 16 16 16 16 21 21 Class Distribution -------------------- 22% | Tank 21% | Mutant 18% | Scavenger-Skirmisher 14% | Hauler-Skirmisher 8% | Scavenger-Mutant 8% | Scavenger-Tank 3% | Skirmisher Dominant Class ---------------- Mutant | -10/Materials Mutant | -10/Mines Mutant | -10/Exiles Scavenger-Mutant | -9/Mines Scavenger-Skirmisher | -8/Materials Tank | -7/Factory Scavenger-Tank | -7/Garrison Hauler-Skirmisher | -7/Factory Resources | -11 -10 -10 -10 -9 -8 -7 -7 -7 ----------- Run | Scr Mat Min Exi Min Mat Fac Gar Fac Matter Collected 1205 | 280 40 . . 75 232 175 342 61 Remotely . | . . . . . . . . . Salvage Created 1955 | 82 160 . . 91 451 526 507 138 Parts 110 | 7 7 . . 10 22 28 27 9 Haulers Intercepted . | . . . . . . . . . Recyclers Shooed . | . . . . . . . . . Parts Field Recycled . | . . . . . . . . . Retrieved Matter . | . . . . . . . . . Parts Self-Destructed . | . . . . . . . . . Prevented . | . . . . . . . . . Kills | -11 -10 -10 -10 -9 -8 -7 -7 -7 ------- Run | Scr Mat Min Exi Min Mat Fac Gar Fac Combat Hostiles Destroyed 44 | . 2 . . 5 11 4 19 3 Guns 21 | . 2 . . . 9 2 7 1 Cannons 1 | . . . . . . 1 . . AOE 20 | . . . . 5 2 . 11 2 Classes Destroyed 11 | 2 1 . . 1 3 3 1 . Worker 2 | . . . . . 1 1 . . Builder 1 | . . . . . . 1 . . Tunneler 1 | 1 . . . . . . . . Recycler 5 | 1 1 . . . . 3 . . Operator 2 | . . . . . 1 1 . . Watcher 1 | . . . . . . 1 . . Swarmer 15 | . . . . 3 4 . 8 . Grunt 19 | . 2 . . 2 5 1 7 2 Sentry 4 | . . . . . 2 . 2 . Hunter 2 | . . . . . . . 2 . Programmer 4 | . . . . . . 3 . 1 Best Kill Streak 6 | 2 2 . . 3 4 6 5 2 Combat Bots Only 5 | . 2 . . 3 4 1 5 2 Max Kills in Single Turn 4 | 1 1 . . 3 3 2 4 2 Gunslinging . | . . . . . . . . . Exploded 4 | . . . . 3 2 . 4 2 Melee . | . . . . . . . . . Uniques/NPCs Destroyed . | . . . . . . . . . Combat | -11 -10 -10 -10 -9 -8 -7 -7 -7 -------- Run | Scr Mat Min Exi Min Mat Fac Gar Fac Damage Taken 2653 | . 70 . . 59 644 359 1050 471 Core 343 | . . . . 13 110 16 160 44 Absorbed by Shields . | . . . . . . . . . Core Remaining (%) 91 | 100 . . . 94 80 . . . Volleys Fired 93 | 4 7 . . 2 24 23 28 5 Largest 4 | 2 2 . . 2 4 4 4 3 Hottest 254 | 80 105 . . 95 247 254 234 119 Shots Fired 275 | 8 14 . . 4 78 82 79 10 Gun 208 | 8 14 . . 1 77 42 57 9 Cannon 43 | . . . . . . 40 3 . Launcher 24 | . . . . 3 1 . 19 1 Special . | . . . . . . . . . Kinetic 32 | . . . . . 16 . 11 5 Thermal 210 | 8 14 . . 1 61 79 43 4 Explosive 23 | . . . . 3 . . 19 1 Electromagnetic 10 | . . . . . 1 3 6 . Robot Hit Streak 19 | 7 12 . . . 9 10 19 6 Robot Miss Streak 5 | . 1 . . 3 5 3 3 1 Penetration Max . | . . . . . . . . . Secondary Targets 1 | . . . . . . . 1 . Max Gunslinging Chain 1 | . . . . . . . 1 . Shots Hit Robots 181 | 7 10 . . . 55 48 55 6 Core Hits 100 | 3 7 . . 6 23 16 40 5 Critical Hits 1 | . . . . . 1 . . . Critical Kills 1 | . . . . . 1 . . . Critical Parts Destroyed . | . . . . . . . . . Melee Attacks 31 | . . . . . 7 22 2 . Impact 31 | . . . . . 7 22 2 . Slashing . | . . . . . . . . . Piercing . | . . . . . . . . . Sneak Attacks . | . . . . . . . . . Combat Hostiles . | . . . . . . . . . Follow-up Attacks . | . . . . . . . . . Damage Inflicted 4110 | 78 117 . . 192 793 786 1891 253 Guns 2163 | 78 117 . . . 707 391 703 167 Cannons 415 | . . . . . . 395 20 . Explosions 1473 | . . . . 192 27 . 1168 86 Melee 59 | . . . . . 59 . . . Ramming . | . . . . . . . . . Kinetic 273 | . . . . . 111 . 59 103 Thermal 2223 | 78 117 . . . 596 769 599 64 Explosive 1446 | . . . . 192 . . 1168 86 Electromagnetic 109 | . . . . . 27 17 65 . Impact 59 | . . . . . 59 . . . Slashing . | . . . . . . . . . Piercing . | . . . . . . . . . Highest Corruption 1 | . . . . . . 1 1 1 Average Corruption 1 | . . . . . . 1 1 1 Corruption Purged . | . . . . . . . . . Effects 3 | . . . . . . . 3 . Message Errors 1 | . . . . . . . 1 . Energy Discharges 1 | . . . . . . . 1 . Data Loss (minor) 1 | . . . . . . . 1 . Overload Shots . | . . . . . . . . . Overflow Damage 20 | . . . . . . 3 17 . Projectiles 3 | . . . . . . 3 . . Explosions 17 | . . . . . . . 17 . Melee . | . . . . . . . . . Knockbacks . | . . . . . . . . . Impact . | . . . . . . . . . Kinetic . | . . . . . . . . . Secondary . | . . . . . . . . . Self-Inflicted Damage 95 | . . . . . . . 95 . Shots 4 | . . . . . . . 4 . Rammed . | . . . . . . . . . Targets Rammed . | . . . . . . . . . Kicked . | . . . . . . . . . Crushed . | . . . . . . . . . Highest Temperature 394 | 36 120 . . 33 394 296 75 . Average Temperature 88 | 16 50 . . 13 130 101 22 . Received Heat Transfer 732 | . 39 . . 30 351 27 210 75 Effects 2 | . . . . . . 2 . . Energy Bleed 2 | . . . . . . 2 . . Siege Activations . | . . . . . . . . . Robots Corrupted . | . . . . . . . . . Combat Hostiles . | . . . . . . . . . Parts Fried . | . . . . . . . . . Impact Corruptions . | . . . . . . . . . Robots Melted 2 | . . . . . . 1 1 . Combat Hostiles 2 | . . . . . . 1 1 . Parts Melted 16 | . . . . . 5 8 3 . Heat Transferred 4589 | 175 262 . . . 1443 1295 1303 111 Parts Sabotaged . | . . . . . . . . . Parts Stolen . | . . . . . . . . . Parts Stripped . | . . . . . . . . . Power Chain Reactions 2 | . . . . . 2 . . . Missiles Intercepted . | . . . . . . . . . Alert | -11 -10 -10 -10 -9 -8 -7 -7 -7 ------- Run | Scr Mat Min Exi Min Mat Fac Gar Fac Peak Influence 540 | 10 104 40 . 135 225 144 540 368 Average Influence 124 | 3 64 40 . 74 114 56 214 294 Maximum Alert Level 2 | . . . . . 1 . 2 1 Low Security (%) 79 | 100 100 100 . 100 93 100 59 . Level 1 16 | . . . . . 6 . 24 100 Level 2 3 | . . . . . . . 16 . Level 3 . | . . . . . . . . . Level 4 . | . . . . . . . . . Level 5 . | . . . . . . . . . High Security . | . . . . . . . . . Max Security . | . . . . . . . . . Squads Dispatched 11 | . . . . . 4 5 . 2 Investigation 4 | . . . . . 2 1 . 1 Extermination 4 | . . . . . . 3 . 1 Reinforcement 3 | . . . . . 2 1 . . Assault . | . . . . . . . . . Garrison . | . . . . . . . . . Intercept . | . . . . . . . . . Construction Impeded . | . . . . . . . . . Haulers Reinforced . | . . . . . . . . . Stealth | -11 -10 -10 -10 -9 -8 -7 -7 -7 --------- Run | Scr Mat Min Exi Min Mat Fac Gar Fac Distress Signals 3 | . . . . . . 2 . 1 Communications Jammed . | . . . . . . . . . Distress Signals . | . . . . . . . . . Times Spotted 62 | . 4 . . 3 15 13 20 7 Peak Tracking Total 5 | . 2 . . 3 5 3 5 5 Tactical Retreats 2 | . . . . . . . 2 . Traps | -11 -10 -10 -10 -9 -8 -7 -7 -7 ------- Run | Scr Mat Min Exi Min Mat Fac Gar Fac Traps Triggered 5 | . . . . . 1 1 2 1 Indirectly . | . . . . . . . . . Trap Hack Attempts . | . . . . . . . . . Triggered . | . . . . . . . . . Disarmed . | . . . . . . . . . Reprogrammed . | . . . . . . . . . Reused 3 | . . . . . . . 3 . Traps Reconfigurated 17 | . . . . . . 9 8 . Traps Extracted . | . . . . . . . . . Installed . | . . . . . . . . . Triggered 3 | . . . . . . . 3 . Machines | -11 -10 -10 -10 -9 -8 -7 -7 -7 ---------- Run | Scr Mat Min Exi Min Mat Fac Gar Fac Machines Disabled 2 | . . . . . . . 2 . Max in Single Turn 1 | . . . . . . . 1 . Garrison Relay 2 | . . . . . . . 2 . Machines Sabotaged . | . . . . . . . . . Garrisons Compromised . | . . . . . . . . . Overloaded Fab Kills . | . . . . . . . . . Fab Network Shutdowns . | . . . . . . . . . Hacking | -11 -10 -10 -10 -9 -8 -7 -7 -7 --------- Run | Scr Mat Min Exi Min Mat Fac Gar Fac Machines Accessed 14 | . 3 . 1 . 3 5 . 2 Terminals 11 | . 3 . . . 3 3 . 2 Fabricators . | . . . . . . . . . Repair Stations . | . . . . . . . . . Recycling Units . | . . . . . . . . . Scanalyzers 1 | . . . . . . 1 . . Garrison Access 1 | . . . . . . 1 . . Total Hacks 34 | . 9 . 1 . 9 8 . 7 Successful 17 | . 5 . 1 . 4 4 . 3 Failed 16 | . 4 . . . 4 4 . 4 Catastrophic 3 | . 1 . . . . 2 . . Database Lockouts 1 | . . . . . 1 . . . Manual 9 | . . . 1 . 5 2 . 1 Terminals 31 | . 9 . . . 9 6 . 7 Fabricators . | . . . . . . . . . Repair Stations . | . . . . . . . . . Recycling Units . | . . . . . . . . . Scanalyzers 1 | . . . . . . 1 . . Garrison Access 1 | . . . . . . 1 . . Terminal Hacks 14 | . 5 . 1 . 4 2 . 2 Part Schematic 3 | . . . . . 2 1 . . Robot Analysis 1 | . 1 . . . . . . . Prototype ID Bank 1 | . 1 . . . . . . . Level Access Points 1 | . . . . . . . . 1 Branch Access Points 1 | . . . . . 1 . . . Alert Level 2 | . . . . . 1 1 . . Locate Traps 3 | . 3 . . . . . . . Zone Layout 1 | . . . . . . . . 1 EX-Prototype ID Bank 1 | . . . 1 . . . . . Fabricator Hacks . | . . . . . . . . . Repair Station Hacks . | . . . . . . . . . Recycling Unit Hacks . | . . . . . . . . . Scanalyzer . | . . . . . . . . . Garrison Access Hacks 1 | . . . . . . 1 . . Unlock Access 1 | . . . . . . 1 . . Unauthorized Hacks 5 | . . . . . 1 2 . 2 Terminals 2 | . . . . . . 1 . 1 Assimilate 1 | . . . . . . 1 . . Botnet 1 | . . . . . . . . 1 Fabricators . | . . . . . . . . . Repair Stations . | . . . . . . . . . Recycling Units . | . . . . . . . . . Scanalyzers . | . . . . . . . . . Garrison Access . | . . . . . . . . . Data Cores Recovered . | . . . . . . . . . Used . | . . . . . . . . . Hacking Detections 11 | . 3 . . . 2 4 . 2 Full Trace Events 2 | . . . . . . 1 . 1 Feedback Events . | . . . . . . . . . Feedback Blocked . | . . . . . . . . . Robot Schematics Acquired . | . . . . . . . . . Robots Built . | . . . . . . . . . Matter . | . . . . . . . . . Time . | . . . . . . . . . Total Robot Build Rating . | . . . . . . . . . Part Schematics Acquired 3 | . . . . . 2 1 . . Parts Built . | . . . . . . . . . Matter . | . . . . . . . . . Time . | . . . . . . . . . Total Part Build Rating . | . . . . . . . . . Parts Repaired . | . . . . . . . . . Time . | . . . . . . . . . Parts Recycled . | . . . . . . . . . Recycled Matter . | . . . . . . . . . Retrieved Matter . | . . . . . . . . . Retrieved Components . | . . . . . . . . . Parts Scanalyzed . | . . . . . . . . . Part Schematics Acquired . | . . . . . . . . . Parts Damaged . | . . . . . . . . . Bothacking | -11 -10 -10 -10 -9 -8 -7 -7 -7 ------------ Run | Scr Mat Min Exi Min Mat Fac Gar Fac Used RIF Installer 1 | . . . . . . . 1 . Robots Hacked . | . . . . . . . . . Non-combat . | . . . . . . . . . Combat . | . . . . . . . . . Robot Hacks Applied . | . . . . . . . . . Relay Couplers Released 7 | . . . . . . . 7 . Machine Destruction 7 | . . . . . . . 7 . Robots Rewired . | . . . . . . . . . Allies Hacked . | . . . . . . . . . Hacks Repelled . | . . . . . . . . . Allies | -11 -10 -10 -10 -9 -8 -7 -7 -7 -------- Run | Scr Mat Min Exi Min Mat Fac Gar Fac Total Allies 4 | . . . . . . 1 . 3 Largest Group 3 | . . . . . . 1 1 3 Highest-Rated Group 93 | . . . . . . 26 26 93 Highest-Rated Ally 31 | . . . . . . 26 26 31 Total Orders 5 | . . . . . . 4 1 . STAY 1 | . . . . . . . 1 . GOTO 2 | . . . . . . 2 . . FOLLOW 2 | . . . . . . 2 . . Ally Attacks 25 | . . . . . . . . 25 Total Damage 371 | . . . . . . . . 371 Kills 1 | . . . . . . . . 1 Allies Corrupted . | . . . . . . . . . Allies Melted . | . . . . . . . . . Intel | -11 -10 -10 -10 -9 -8 -7 -7 -7 ------- Run | Scr Mat Min Exi Min Mat Fac Gar Fac Robot Analysis Total 1 | . 1 . . . . . . . Derelict Logs Recovered . | . . . . . . . . . Drone Launches . | . . . . . . . . . Drone Recoveries . | . . . . . . . . . Exploration | -11 -10 -10 -10 -9 -8 -7 -7 -7 ------------- Run | Scr Mat Min Exi Min Mat Fac Gar Fac Turns Passed 3931 | 73 357 101 235 192 535 1247 816 375 Spaces Moved 2342 | 55 322 38 234 104 384 645 367 193 Core 1 | 1 . . . . . . . . Treads 831 | . . . . . . 271 367 193 Legs . | . . . . . . . . . Wheels 1510 | 54 322 38 234 104 384 374 . . Hover . | . . . . . . . . . Flight . | . . . . . . . . . Fastest Speed 50 | 50 80 100 100 90 100 100 160 180 Average Speed 127 | 79 96 100 100 99 100 135 178 181 Slowest Speed 220 | 80 120 100 100 100 100 200 180 220 Overloaded Moves . | . . . . . . . . . Propulsion Burnouts . | . . . . . . . . . Robots Hopped . | . . . . . . . . . Cave-ins Triggered . | . . . . . . . . . Exploration Rate (%) 27 | 3 32 13 62 18 33 15 61 9 Regions Visited 8 Branch Regions 3 Pre-discovered Areas . | . . . . . . . . . Known Exits Taken 1 | . . . . . . 1 . . Unknown Exits Taken 6 | 1 1 1 1 1 1 . . . Scrap Searched . | . . . . . . . . . Spaces Dug 11 | . . . . . . 11 . . Terrain Destroyed 165 | . . . . 26 3 14 113 9 Melee 11 | . . . . . . 11 . . Projectile 7 | . . . . . . 3 4 . AOE 147 | . . . . 26 3 . 109 9 Actions | -11 -10 -10 -10 -9 -8 -7 -7 -7 --------- Run | Scr Mat Min Exi Min Mat Fac Gar Fac Total 3024 | 72 356 101 235 190 469 933 459 209 Wait 391 | . 6 64 . 69 27 200 24 1 Move 2335 | 54 321 37 233 103 383 645 366 193 Hop . | . . . . . . . . . Pick Up 44 | 5 11 . 1 1 6 9 9 2 Fast Attach 25 | 8 2 . . 1 4 8 2 . Attach 10 | . . . . . 4 2 3 1 Detach 7 | 1 2 . . . 1 2 1 . Swap 45 | . 2 . . 9 6 9 16 3 Drop 38 | . 5 . 1 5 7 13 4 3 Fire 93 | 4 7 . . 2 24 23 28 5 Melee 31 | . . . . . 7 22 2 . Ram . | . . . . . . . . . Kick . | . . . . . . . . . Crush . | . . . . . . . . . Escape Stasis 4 | . . . . . . . 4 . Rewire 1 | . . . . . . . . 1 Trap . | . . . . . . . . . Miscellaneous . | . . . . . . . . . Route ------- -11/Scrapyard -10/Materials -10/Mines -10/Exiles -9/Mines -8/Materials (discovered 2 exits: *Fac / Sto) -7/Factory (discovered 2 exits: [*Low] / Gar) -7/Garrison (discovered 2 exits: *Fac x2) -7/Factory (discovered 5 exits: Fac x4 / [*Low]) History --------- Turn | Location | Event 16 | -11/Scrapyard | Discovered new exit (range 16) 74 | -11/Scrapyard | Entered Materials 179 | -10/Materials | Discovered new exit (range 7) 304 | -10/Materials | Build established: Mutant 431 | -10/Materials | Entered Mines 432 | -10/Mines | Met a Derelict bent on vengeance 528 | -10/Mines | Deemed a non-threat by the Exiles lab entrance 528 | -10/Mines | Discovered new exit (range 5) 532 | -10/Mines | Entered Exiles 557 | -10/Exiles | Met 8R-AWN 573 | -10/Exiles | Met EX-HEX 602 | -10/Exiles | Met EX-BIN 616 | -10/Exiles | Aligned with FarCom system 617 | -10/Exiles | Given EX-Vault access code 641 | -10/Exiles | Opened EX-Vault 649 | -10/Exiles | Found Trap Reconfigurator 669 | -10/Exiles | Warned to stay clear of 0b10 Research branches 702 | -10/Exiles | Met EX-DEC 759 | -10/Exiles | Discovered new exit (range 10) 767 | -10/Exiles | Left Exiles lab with Trap Reconfigurator 767 | -10/Exiles | Entered Mines 943 | -9/Mines | Discovered new exit (range 10) 959 | -9/Mines | Entered Materials 959 | -8/Materials | Evolved 4 slots: Utility x2, Weapon x2 995 | -8/Materials | Identified exit to Storage 1279 | -8/Materials | Build established: Scavenger-Skirmisher 1322 | -8/Materials | Central database locked down 1355 | -8/Materials | Discovered new exit (range 16) 1494 | -8/Materials | Entered Factory 1494 | -7/Factory | Evolved 2 slots: Utility x2 2134 | -7/Factory | Build established: Tank 2681 | -7/Factory | Discovered new exit (range 16) 2741 | -7/Factory | Identified exit to Garrison 2741 | -7/Factory | Entered Garrison 2741 | -7/Garrison | Accompanied by 1 ally 2750 | -7/Garrison | Installed Relay Interface Framework 2802 | -7/Garrison | Triggered checkpoint 3038 | -7/Garrison | Triggered checkpoint 3058 | -7/Garrison | Triggered checkpoint 3150 | -7/Garrison | Discovered new exit (range 14) 3198 | -7/Garrison | Triggered checkpoint 3225 | -7/Garrison | Garrison Relay disabled 3324 | -7/Garrison | Triggered checkpoint 3458 | -7/Garrison | Garrison Relay disabled 3539 | -7/Garrison | Discovered new exit (range 10) 3557 | -7/Garrison | Entered Factory 3588 | -7/Factory | Identified exit to Factory 3633 | -7/Factory | Allied Derelicts emerged from ambush trap array 3705 | -7/Factory | Build established: Hauler-Skirmisher 3784 | -7/Factory | Discovered new exit (range 5) 3887 | -7/Factory | P-60 Hacker assimilated allied XX-72H(g) 3932 | -7/Factory | Self-destructed Last Messages --------------- 03897_ XX-72H(g) destroyed. 03897_ Imp. Light Armor Plating destroyed. 03901_ R-06 Scavenger collects Imp. Heat Sink. 03904_ Slug penetrates P-60 Hacker. 03910_ Destroyed Shock Rifle. 03910_ Slug penetrates P-60 Hacker. 03910_ P-60 Hacker destroyed. 03913_ W-25 Informer sends out distress signal. 03916_ Slug penetrates Wall. 03916_ Med. Treads destroyed. 03919_ Slug penetrates Wall. 03924_ Detecting nearby Garrison Access. 03924_ K-01 Serf collects debris. 03926_ Slug penetrates Wall. 03926_ Prc. Beam Rifle destroyed. 03926_ Gauss Rifle destroyed. 03929_ Slug penetrates Wall. 03929_ K-01 Serf collects debris. 03932_ Slug penetrates Wall. 03932_ Med. Treads destroyed. Map ----- +----------------------------------------------------+ | ?????????????????????????????????????????????????? | | ?????????????????????????????????????????????????? | | ?????????????????????????????????????????????????? | | ?????????????????????????????????????????????????? | | ?????????????????????????????????????????????????? | | ????????????? ?????????????????????????????????? | | ????????????? "??? ???????????g?????????????????? | | ##??????????? """ #???????????????????????????? | | ??????????? """ +???????????????????????????? | | ??????????# ????????????????????????????? | | ??????????# #????????????????gl??????????? | | ??????????# !!! #???????????????g????????????? | | ??????????# !!! #????????????????????????????? | | #??????????# !!! #????????????????????????????? | | #??????????# ??????????????????????????????? | | #??????????# ???####????????????????????????? | | #?????????## ##?? ?????????????????????????? | | #?????????# #?? ??????????????????????????? | | ########### #?? ??????????????????????????? | | T #? ???????????????????????????? | | +#####+##### ##w ????????????????????????????? | | ?# ???# ## #????????????????????????????? | | """ # ???### ####+########?????????????????????? | | """ # ! ????#h# +?????????????????????? | | """ # ?####h#= #?????????????????????? | | """ # ## |+%Y @ #?????????????????????? | | """ # ## #pk #?????????????????????? | | ????#* !## # #?????????????????????? | | ????# ## #############?????????????????????? | | ????#! ## % #?????????????????????????????????? | | ?#######+## ==!########??????????????????????????? | | ?# ! ???????????????????? | | ?# ##### #######??????????????????????????? | | ???????# #????????????????????????????????? | | ???????# #????????????????????????????????? | | ???????# #????????????????????????????????? | | ???????# #????????????????????????????????? | | ???????# #????????????????????????????????? | | ???????# #????????????????????????????????? | | ???????# #????????????????????????????????? | | ??????# #????????????????????????????????? | | ??????# * ????Y???????????????????????????? | | ??????# =% #????????????????????????????????? | | ??????# %! ####????????????????????????????????? | | ??????# / #????????????????????????????????????? | | ?????? ?????????????????????????????????????? | | ??????? =! ?????????????????????????????????????? | | ??????????! ?????????????????????????????????????? | | ?????????????????????????????????????????????????? | | ?????????????????????????????????????????????????? | +----------------------------------------------------+ Best States ------------- Heat Dissipation 62 Energy Generation 14 Energy Capacity 265 Matter Stores 300 Matter Capacity 300 Sight Range 22 Terrain Scan Range 16 Terrain Scan Density 10 Armor Coverage 300 Evasion (%) 44 Recoil Reduction 2 Item Schematics ----------------- Hcp. Storage Unit | -8/Materials | Hacked Arm. Wheel | -8/Materials | Hacked Disruptor Cannon | -7/Factory | Hacked Robot Schematics ------------------ None Fabricated ------------ Nothing Alien Tech Used ----------------- None Achievements -------------- None Challenges ------------ None Game ------ Seed ParticleNullAirjet Manual? 0 Play Time 00:43:21 Cumulative 42.6 hours Start 2019.11.22 @ 23:41:09 End 2019.11.25 @ 09:40:06 Sessions 3 Manual Loads 0 Difficulty Rogue Special Mode None Game No. 34 Rogue 34 Adventurer 0 Explorer 0 Win Type - Total 7 Types 7/0/0/0/0/0/0 Lore% 60 Gallery% 57 Achievement% 43 Wizard Run 0 Options --------- ASCII 0 Keyboard 0 Movement Vi Keybinds 0 Fullscreen 0 Font 14/SmallcapsGlow Map View 72x52 Tactical HUD 1 Map Filters NONE Filters NONE Steam 0 RUN: eddbd96f-ad80-49c6-89cd-d94fa1485e04